[Event "Chinese League Div-A Rapid 2022"]
[Site "Fuling,Chongqing"]
[Date "2022.09.08"]
[Round "3.27"]
[White "Zhang, Pengxiang"]
[Black "Ma, Qun"]
[Result "0-1"]
[ECO "C48"]
[WhiteElo "2564"]
[BlackElo "2666"]
[Annotator "TA"]
[PlyCount "82"]
[EventDate "2022.09.07"]
[EventType "team-tourn"]
[EventCountry "CHN"]
[SourceTitle "playchess.com"]
[Source "ChessBase"]
[SourceQuality "1"]
[TimeControl "1500+10"]

{[%evp 11,82,14,24,15,35,31,36,30,30,37,71,67,83,64,83,87,159,145,156,153,127,150,190,186,214,229,227,145,160,27,0,-96,-108,-82,-104,-178,-177,-176,-182,-175,-161,-269,-261,-461,-449,-447,-322,-322,-299,-279,-258,-302,-299,-292,-280,-427,-413,-420,-425,-498,-457,-466,-408,-712,-705,-1131,-1124,-1064,-297,-322,-240,-1051,-964]} 1. e4 {[%emt 0:00:03]} e5 {[%emt 0:00:05]} 2. Nf3 {[%emt 0:00:01]} Nc6 {[%emt 0:00:02]} 3. Bb5 {[%emt 0:00:01]} Nf6 {[%emt 0:00:03]} 4. d3 {[%emt 0:00:01]} Bc5 {[%emt 0:00:05]} 5. Bg5 {[%emt 0:00:02]} d6 {[%emt 0:00:16]} 6. Nc3 {[%emt 0:00:09]} h6 {[%emt 0:00:32]} 7. Bh4 {[%emt 0:00:01] C48: Four Knights: 4 Bb5, replies other than 4...Bb4.} (7. Bxf6 $5 Qxf6 8. Nd5 $11) 7... a6 {[%emt 0:00:59]} 8. Bxc6+ {[%emt 0:00:26]} bxc6 {[%emt 0:00:02]} 9. d4 {[%emt 0:00:15] White is slightly better.} exd4 {[%emt 0:00:43]} 10. Nxd4 {[%emt 0:00:01]} Bd7 {[%emt 0:01:09]} 11. Qd3 {[%emt 0:00:40]} g5 {[%emt 0:09:22]} 12. Bg3 {[%emt 0:00:01] [#]} Ng4 $146 {[%emt 0:00:01]} ({Predecessor:} 12... Nh5 13. O-O-O Nf4 14. Qd2 Ng6 15. f3 Qe7 16. Bf2 a5 17. g3 Ne5 18. f4 Ng4 {1-0 (37) Esipenko,A (2682)-Pridorozhni,A (2596) Sochi 2020}) 13. Nb3 {[%emt 0:04:02]} Bb6 {[%emt 0:00:38]} (13... Ba7 $142) 14. Na4 $1 $16 {[%emt 0:01:49]} (14. h3 $6 Ne5 15. Bxe5 dxe5 $14) 14... Ba7 {[%emt 0:02:13]} 15. h3 {[%emt 0:00:01]} Nf6 {[%emt 0:00:44]} 16. e5 {[%emt 0:01:12]} Nd5 {[%emt 0:02:23]} 17. exd6 {[%emt 0:00:02]} O-O {[%emt 0:00:27]} 18. O-O-O {[%emt 0:00:13]} cxd6 {[%emt 0:00:28]} 19. Bxd6 {[%emt 0:00:06]} Re8 {[%emt 0:00:20] [#]} 20. c4 {[%emt 0:01:44]} ({White must play} 20. Bc5 $1 $16) 20... Qf6 $11 {[%emt 0:00:54]} 21. Bc5 {[%emt 0:00:35] [#]} (21. c5 $11 {remains equal.}) 21... Qf4+ $1 $17 {[%emt 0:01:00] White is now going downhill.} (21... Bf5 22. Qd4 Re4 23. Qxf6 Rxc4+ 24. Nc3 Nxf6 25. Bxa7 Rxa7 26. Rd4 Rxd4 27. Nxd4 $11) 22. Nd2 {[%emt 0:03:56] Strongly threatening g3.} (22. Kb1 $2 Bf5 23. cxd5 Bxd3+ 24. Rxd3 Qxa4 $19) 22... Bf5 {[%emt 0:00:43] Black is more active.} 23. Qf3 {[%emt 0:01:33]} (23. Qa3 $17 Bxc5 24. Nxc5 (24. Qxc5 Rab8 $15)) 23... Bxc5 $19 {[%emt 0:00:24] Dancing on a razor blade.} 24. cxd5 {[%emt 0:04:31]} Qxa4 {[%emt 0:00:18][%csl Gf5][%cal Ra4c2]} 25. Qxf5 {[%emt 0:00:01]} Qxa2 $40 {[%emt 0:00:01][%mdl 128] White is in trouble.} 26. Rhe1 {[%emt 0:05:02]} (26. Qb1 $142 Qxd5 27. Nf3 Qc4+ 28. Qc2 Qxc2+ 29. Kxc2) 26... cxd5 {[%emt 0:00:10] Threatens to win with ...Rec8.} 27. Nb1 $2 {[%emt 0:00:25]} (27. Qb1 Qa5 28. Rxe8+ Rxe8 29. Qf5) 27... Rxe1 {[%emt 0:01:34]} ({But not} 27... Reb8 $2 28. Re2 d4 29. Rc2 $19 (29. Qxc5 $2 Rc8 $19)) 28. Rxe1 {[%emt 0:00:01]} Bd4 {[%emt 0:00:05]} 29. Qc2 {[%emt 0:01:06]} Rb8 {[%emt 0:00:33][%cal Rb8b2]} 30. b3 {[%emt 0:00:55]} Qxb3 {[%emt 0:00:43]} 31. Re8+ {[%emt 0:00:59]} Kg7 {[%emt 0:00:11]} 32. Qxb3 {[%emt 0:00:10]} Rxb3 {[%emt 0:00:02][%mdl 4096] Endgame KRB-KRN} 33. f3 {[%emt 0:00:07]} (33. Re2 $142) 33... Rb2 {[%emt 0:00:29]} 34. Nd2 {[%emt 0:00:09]} Ra2 {[%emt 0:00:04]} 35. g4 {[%emt 0:00:03]} a5 {[%emt 0:00:08][%cal Ba6a5,Ba5a4,Ba4a3][%mdl 32]} 36. Nb3 {[%emt 0:00:12]} Bc3 {[%emt 0:00:31]} 37. Nc5 {[%emt 0:00:26]} (37. Re3 $142 Bf6 38. Rd3) 37... a4 {[%emt 0:00:29] And now ...a3 would win.} 38. Rd8 {[%emt 0:00:16]} a3 {[%emt 0:00:54]} 39. Rxd5 {[%emt 0:00:04]} Ra1+ $2 {[%emt 0:00:39]} (39... Rf2 {...a2 is the strong threat.} 40. Rd3 a2) 40. Kc2 {[%emt 0:00:01]} a2 {[%emt 0:00:01] Hoping for ...Rb1.} 41. Nb3 $2 {[%emt 0:00:01] [#]} (41. Kb3) 41... Rb1 $1 {[%emt 0:00:05] Weighted Error Value: White=0.63/Black=0.27 (precise)} 0-1

[Event "Chinese League Div-A Rapid 2022"]
[Site "Fuling,Chongqing"]
[Date "2022.09.08"]
[Round "3.28"]
[White "Nie, Xinyang"]
[Black "Xu, Zhihang"]
[Result "0-1"]
[ECO "E40"]
[WhiteElo "2388"]
[BlackElo "2489"]
[Annotator "TA"]
[PlyCount "112"]
[EventDate "2022.09.07"]
[EventType "team-tourn"]
[EventCountry "CHN"]
[SourceTitle "playchess.com"]
[Source "ChessBase"]
[SourceQuality "1"]
[TimeControl "1500+10"]

{[%evp 18,112,66,57,78,27,17,15,23,21,29,0,31,25,45,33,33,21,24,28,16,19,33,0,0,0,0,-41,-32,-30,-29,-58,0,-91,-91,-131,-95,-1175,-1161,-1388,-1351,-1525,-1485,-1277,-1208,-29987,-1027,-803,-338,-364,-126,-127,-107,-318,-315,-320,-315,-301,-145,-227,-227,-437,-422,-437,-437,-437,-437,-1085,-1085,-1050,-1044,-1016,-1016,-29977,-29978,-29978,-29979,-29980,-29981,-29981,-29982,-29982,-29983,-29983,-29984,-29984,-29985,-29977,-29978,-29978,-29978,-29978,-29979,-29986,-29987,-29987,-29988]} 1. d4 {[%emt 0:00:01]} Nf6 {[%emt 0:00:04]} 2. c4 {[%emt 0:00:02]} e6 {[%emt 0:00:03]} 3. Nc3 {[%emt 0:00:02]} Bb4 {[%emt 0:00:02]} 4. e3 {[%emt 0:00:01]} O-O {[%emt 0:00:12]} 5. Bd3 {[%emt 0:00:02]} d6 {[%emt 0:00:50]} 6. Nge2 {[%emt 0:00:37]} e5 {[%emt 0:00:38]} 7. a3 {[%emt 0:00:07]} Bxc3+ {[%emt 0:00:03]} 8. Nxc3 {[%emt 0:00:01]} Nc6 {[%emt 0:00:29]} 9. d5 {[%emt 0:00:44]} Ne7 {[%emt 0:00:02]} 10. O-O {[%emt 0:00:19]} Ng6 {[%emt 0:00:08] [#] E40: Nimzo-Indian: Rubinstein (4 e3): Unusual Black 4th moves.} 11. Bxg6 $146 {[%emt 0:00:28]} ({White should play} 11. Re1 $16) ({Predecessor:} 11. b4 Qe7 12. Qc2 Re8 13. Bb2 e4 14. Be2 Bf5 15. Nb5 Ne5 16. Nd4 Bg6 17. Qc3 h5 18. Rae1 {0-1 (43) Khurtsidze,N (2447)-Zhao,X (2543) Batumi 2012}) 11... fxg6 $11 {[%emt 0:01:28]} 12. b4 {[%emt 0:02:30]} e4 {[%emt 0:00:54] The position is equal.} 13. Bb2 {[%emt 0:00:42]} Qe7 {[%emt 0:00:18]} 14. Qc2 {[%emt 0:00:08]} a6 {[%emt 0:00:32]} 15. Ne2 {[%emt 0:00:10]} Bf5 {[%emt 0:01:11]} 16. Bxf6 {[%emt 0:01:42]} Rxf6 {[%emt 0:00:59]} 17. Rad1 {[%emt 0:00:32]} g5 {[%emt 0:01:02]} 18. Ng3 {[%emt 0:01:12]} Bg6 {[%emt 0:00:06]} 19. Rd4 {[%emt 0:00:01]} Re8 {[%emt 0:00:14]} 20. c5 {[%emt 0:00:09]} h5 {[%emt 0:00:09][%cal Bh7h5,Bh5h4][%mdl 32]} 21. cxd6 {[%emt 0:00:06]} cxd6 {[%emt 0:00:04]} 22. Rc1 {[%emt 0:00:51]} h4 {[%emt 0:00:15]} 23. Nf1 {[%emt 0:00:02]} Ref8 {[%emt 0:00:08]} 24. Rd2 {[%emt 0:00:01]} Qe5 {[%emt 0:01:02]} (24... Be8 $1 $15) 25. Qc3 {[%emt 0:01:59]} (25. Qd1 $11 {keeps the balance.}) 25... Qf5 $1 $17 {[%emt 0:00:02]} 26. Qc7 {[%emt 0:00:14]} Bh5 {[%emt 0:03:27][%cal Oh5f3] Strongly threatening ...Bf3!} 27. Qxb7 $2 {[%emt 0:01:37][%mdl 8192] [#]} (27. Qc2 $17) 27... Bf3 $1 $19 {[%emt 0:00:12][%mdl 512] Threatens to win with ...Qg4.} 28. Rc7 {[%emt 0:01:30] [#]} (28. Rdc2 Bxg2) 28... Rg6 $1 {[%emt 0:00:07] ...Qg4 is the strong threat.} 29. Rdc2 {[%emt 0:02:59]} (29. Qxa6 Bxg2) 29... Qg4 {[%emt 0:01:57][%csl Gf3][%cal Rg4g2]} 30. Ng3 {[%emt 0:00:08]} hxg3 {[%emt 0:00:02]} 31. hxg3 {[%emt 0:00:06] [#]} Bd1 {[%emt 0:00:53]} (31... Rh6 $142 $1 32. Rxg7+ Kh8 33. Qd7 Qh5 34. Rh7+ Rxh7 35. Qxh7+ Kxh7 36. Rc7+ Kg6 37. g4 Qh8 $1 38. Rc1 Bxg2 $1 {[%mdl 512]} 39. f4 exf3 40. Kf2 Qh4+ 41. Kg1 Rh8 42. Rb1 Qg3 43. e4 Rh1#) 32. Rd2 {[%emt 0:00:45]} Qh5 {[%emt 0:00:14]} (32... Be2 $142 {[%cal Of8f2] And now ...Rxf2! would win.} 33. Rdc2 Bb5) 33. Rc8 {[%emt 0:00:36]} Rxc8 {[%emt 0:02:36]} (33... Rh6 34. Rxf8+ Kxf8 35. Qc8+ Kf7 36. Qd7+ Kg6 37. Qe6+ Kh7 38. Qf5+ g6 39. Qf7+ Kh8 40. Qf8+ Kh7 41. Qf7+ Kh8 42. Qf8+ Kh7 43. Qf7+ $11) (33... Bg4 $19 {has better winning chances. ( -> ...Rh6)} 34. Rxf8+ Kxf8 35. Qb8+ Kf7 36. Qc7+ Kg8 37. Qd8+ Kh7) 34. Qxc8+ $17 {[%emt 0:00:01]} Kh7 {[%emt 0:00:01]} 35. Rd4 $2 {[%emt 0:02:21]} (35. Qf5 $17 {only move.}) 35... Bg4 $1 $19 {[%emt 0:02:53]} ({Weaker is} 35... Rh6 36. Qf5+ g6 37. Qf7+ Kh8 38. Qe8+ Kh7 39. Qf7+ Kh8 40. Qe8+ Kh7 41. Qf7+ $11) 36. Qe8 {[%emt 0:00:43]} Bf5 {[%emt 0:01:02]} 37. Qf7 {[%emt 0:01:08]} g4 {[%emt 0:00:02]} (37... Bc8 $1 $19 {White must now prevent ...Qe2.} 38. f3 exf3 39. Qxf3 g4) 38. a4 {[%emt 0:00:40]} (38. Rc4 $17) 38... Qg5 {[%emt 0:00:43]} 39. b5 $2 {[%emt 0:00:19]} ({But not} 39. Qb7 Rh6 40. Rd1 Qh5 $19) (39. Rc4 Rh6 40. Rc7) 39... axb5 {[%emt 0:00:02]} 40. axb5 {[%emt 0:00:00]} Rf6 {[%emt 0:00:02]} 41. Qe7 {[%emt 0:01:02] [#]} Qh5 $1 {[%emt 0:01:42]} 42. b6 {[%emt 0:00:26]} (42. Rb4 $142 Rh6 43. Qh4) 42... Rh6 {[%emt 0:00:02][%csl Gh6][%cal Rh5h1]} 43. Qh4 {[%emt 0:00:01] [#] Prevents Qh1+.} Qe8 $1 {[%emt 0:00:11]} ({Not} 43... Qf7 44. Qg5 Qg6 45. Qxg6+ Kxg6 46. f4 $17) 44. Qg5 {[%emt 0:00:02]} Rh5 {[%emt 0:00:07]} 45. Qf4 {[%emt 0:00:55]} Qb5 {[%emt 0:00:12] Black mates.} 46. Rd1 {[%emt 0:00:58]} Qxb6 {[%emt 0:00:02]} 47. Rf1 {[%emt 0:00:28]} Qc5 {[%emt 0:00:24]} 48. f3 {[%emt 0:00:04]} exf3 {[%emt 0:00:15]} 49. gxf3 {[%emt 0:00:01]} Qc2 {[%emt 0:00:07][%csl Gh5][%cal Rc2h2]} 50. Rf2 {[%emt 0:00:18]} Qd1+ {[%emt 0:00:02]} 51. Rf1 {[%emt 0:00:02] [#]} Rh1+ $3 {[%emt 0:00:02][%mdl 512]} 52. Kxh1 {[%emt 0:00:01]} Qxf1+ {[%emt 0:00:01]} 53. Kh2 {[%emt 0:00:00]} Qf2+ {[%emt 0:00:03]} 54. Kh1 {[%emt 0:00:01]} Qxf3+ {[%emt 0:00:02]} 55. Kh2 {[%emt 0:00:01]} Be4 {[%emt 0:00:10][%csl Ge4][%cal Rf3h1]} 56. Qxf3 {[%emt 0:00:05]} gxf3 {[%emt 0:00:02] Weighted Error Value: White=0.84/Black=0.33} 0-1

[Event "Chinese League Div-A Rapid 2022"]
[Site "Fuling,Chongqing"]
[Date "2022.09.08"]
[Round "3.29"]
[White "Hou, Yifan"]
[Black "Zhang, Lanlin"]
[Result "1-0"]
[ECO "B53"]
[WhiteElo "2650"]
[BlackElo "2135"]
[Annotator "TA"]
[PlyCount "85"]
[EventDate "2022.09.07"]
[EventType "team-tourn"]
[EventCountry "CHN"]
[SourceTitle "playchess.com"]
[Source "ChessBase"]
[SourceQuality "1"]
[TimeControl "1500+10"]

{[%evp 10,85,21,16,28,22,30,40,58,16,13,20,29,8,5,2,19,0,28,17,25,17,16,17,27,26,21,26,105,104,104,104,116,104,107,107,108,107,110,108,114,102,106,86,106,100,120,114,104,121,114,121,216,160,191,162,158,160,170,157,167,164,160,161,450,256,789,760,752,744,675,639,29995,29996,29996,29997,29998,29999]} 1. e4 {[%emt 0:00:02]} c5 {[%emt 0:00:22]} 2. Nf3 {[%emt 0:00:02]} d6 {[%emt 0:00:01]} 3. d4 {[%emt 0:00:01]} cxd4 {[%emt 0:00:01]} 4. Qxd4 {[%emt 0:00:02]} e5 {[%emt 0:01:03]} 5. Bb5+ {[%emt 0:03:35]} Nc6 {[%emt 0:00:42]} 6. Qd3 {[%emt 0:01:16]} h6 {[%emt 0:00:14] B53: Sicilian: 2...d6: Lines with Qxd4.} 7. c4 {[%emt 0:05:01]} Nf6 {[%emt 0:00:34]} 8. Nc3 {[%emt 0:00:01]} a6 {[%emt 0:01:43] White is slightly better.} 9. Bxc6+ {[%emt 0:01:14]} bxc6 {[%emt 0:00:01]} 10. O-O {[%emt 0:00:02][%cal Oc4c5]} Qc7 {[%emt 0:02:48]} 11. Rd1 {[%emt 0:01:40]} Be7 {[%emt 0:00:29]} 12. b3 {[%emt 0:00:08]} O-O {[%emt 0:00:36]} 13. Ba3 {[%emt 0:00:10][%cal Ra3d6]} Qa5 {[%emt 0:01:13]} 14. Na4 {[%emt 0:00:58]} Rd8 {[%emt 0:03:10] [#]} 15. Qe3 $146 {[%emt 0:03:01]} ({Predecessor:} 15. c5 dxc5 16. Qc2 Rxd1+ 17. Rxd1 Bg4 18. Bxc5 Bxc5 19. Nxc5 Re8 20. Rc1 Bxf3 21. gxf3 {0-1 (36) Pavlova,N (1954)-Kavyev,R (2256) Kazan 2017}) 15... c5 {[%emt 0:03:04]} 16. Bb2 {[%emt 0:00:37]} Bd7 {[%emt 0:00:14]} 17. Nc3 {[%emt 0:00:02]} Qc7 {[%emt 0:00:02]} 18. Nh4 {[%emt 0:01:57]} Rdb8 {[%emt 0:01:07]} (18... Qc8 $1 $11) 19. Nf5 $16 {[%emt 0:01:02]} Bxf5 {[%emt 0:01:56]} 20. exf5 {[%emt 0:00:02]} Re8 {[%emt 0:00:16]} 21. Re1 {[%emt 0:01:26]} Rad8 {[%emt 0:00:19]} 22. Rad1 {[%emt 0:00:01] Against d5} Bf8 {[%emt 0:01:48]} 23. h3 {[%emt 0:00:14]} Qc8 {[%emt 0:03:23]} 24. Qd3 {[%emt 0:00:05]} (24. g4 {is interesting.} Qc6 25. Qd3 a5 26. Bc1) 24... Re7 {[%emt 0:02:31]} 25. Qc2 {[%emt 0:02:00]} Red7 {[%emt 0:00:34]} 26. Na4 {[%emt 0:02:36] Hoping for Nb6.} Qc6 {[%emt 0:00:15] Against Nb6} 27. f4 {[%emt 0:00:56]} Nh5 {[%emt 0:00:47]} 28. fxe5 {[%emt 0:00:14]} dxe5 {[%emt 0:00:02] [#]} 29. Rxd7 $1 {[%emt 0:00:19]} ({But not} 29. Bxe5 Rxd1 30. Rxd1 Rxd1+ 31. Qxd1 Qe4 $14) 29... Rxd7 {[%emt 0:00:14]} 30. Bxe5 {[%emt 0:00:04]} Be7 {[%emt 0:00:18]} (30... Re7 $16) 31. Nc3 {[%emt 0:00:10]} Bh4 {[%emt 0:00:05]} 32. Re4 {[%emt 0:00:17]} Bg5 {[%emt 0:00:25]} 33. Nd5 {[%emt 0:00:04]} Nf6 {[%emt 0:00:06]} 34. Bxf6 {[%emt 0:00:20]} Bxf6 {[%emt 0:00:06]} 35. Re8+ {[%emt 0:00:18]} Kh7 {[%emt 0:00:02] White must now prevent ...Rxd5.} 36. Qe4 {[%emt 0:00:01][%cal Oe8e6] Re6! is the strong threat. White is much more active.} a5 $2 {[%emt 0:00:23] [#]} (36... Qd6 37. Qd3 Qc6) 37. Kh1 {[%emt 0:00:10]} (37. Re6 $142 $3 {[%mdl 512]} Qb7 (37... Qc8 38. Rxf6) 38. Nxf6+ gxf6 39. Qxb7 Rxb7 40. Ra6) 37... a4 $2 {[%emt 0:00:08] [#]} (37... Qd6 38. Ra8 Rd8) 38. Re6 $3 $18 {[%emt 0:00:02][%mdl 512]} Qb7 {[%emt 0:00:10]} (38... Qc8 39. Rxf6) 39. Rb6 {[%emt 0:00:12]} Qa7 {[%emt 0:00:10]} 40. Rxf6 {[%emt 0:00:30]} axb3 {[%emt 0:00:16] [#]} 41. Rxh6+ $3 {[%emt 0:00:10][%mdl 512] White mates.} gxh6 {[%emt 0:00:02]} 42. f6+ {[%emt 0:00:04]} Kh8 {[%emt 0:00:19]} 43. Qg4 {[%emt 0:00:01] Weighted Error Value: White=0.14 (very precise) /Black=0.45} 1-0

[Event "Chinese League Div-A Rapid 2022"]
[Site "Fuling,Chongqing"]
[Date "2022.09.08"]
[Round "3.30"]
[White "Yan, Tianqi"]
[Black "Zhang, Xiaowen"]
[Result "1/2-1/2"]
[ECO "C11"]
[WhiteElo "2188"]
[BlackElo "2307"]
[Annotator "TA"]
[PlyCount "53"]
[EventDate "2022.09.07"]
[EventType "team-tourn"]
[EventCountry "CHN"]
[SourceTitle "playchess.com"]
[Source "ChessBase"]
[SourceQuality "1"]
[TimeControl "1500+10"]

{[%evp 16,53,13,0,2,0,2,0,0,0,0,0,0,0,0,0,0,0,0,0,0,0,0,0,0,0,0,0,0,0,0,0,0,0,0,0,0,0,0,0]} 1. e4 {[%emt 0:00:10]} e6 {[%emt 0:00:07]} 2. d4 {[%emt 0:00:00]} d5 {[%emt 0:00:02]} 3. Nc3 {[%emt 0:00:02]} Nf6 {[%emt 0:00:30]} 4. e5 {[%emt 0:00:08]} Nfd7 {[%emt 0:00:03]} 5. f4 {[%emt 0:00:07]} c5 {[%emt 0:00:02]} 6. Nf3 {[%emt 0:00:06]} Nc6 {[%emt 0:00:02]} 7. Be3 {[%emt 0:00:13]} a6 {[%emt 0:00:05]} 8. Qd2 {[%emt 0:00:05]} b5 {[%emt 0:00:02][%cal Bb7b5,Bb5b4][%mdl 32]} 9. a3 {[%emt 0:00:08] The position is equal.} Qa5 {[%emt 0:00:37] The modern move. C11: French: Classical System: 4 e5 and 4 Bg5 dxe4.} 10. Be2 {[%emt 0:00:12]} b4 {[%emt 0:02:00]} 11. Nd1 {[%emt 0:00:07]} Rb8 {[%emt 0:00:03]} 12. O-O {[%emt 0:00:12]} bxa3 {[%emt 0:00:34]} 13. Qxa5 {[%emt 0:00:15]} Nxa5 {[%emt 0:00:02]} 14. dxc5 {[%emt 0:00:12]} (14. b3 {is interesting.} Nc6 15. dxc5 Nb4 16. Ne1) 14... axb2 {[%emt 0:05:13]} 15. Nxb2 {[%emt 0:00:04]} Rxb2 {[%emt 0:00:04]} 16. Rxa5 {[%emt 0:00:06]} Rxc2 {[%emt 0:00:25]} 17. Bxa6 {[%emt 0:00:03]} Bxc5 {[%emt 0:00:03]} (17... Bxa6 $2 18. Rxa6 Nxc5 19. Ra8+ Kd7 20. Ra7+ Kc8 21. Rxf7 $18) 18. Bxc5 {[%emt 0:00:23]} Rxc5 {[%emt 0:00:04]} (18... Bxa6 $2 19. Rxa6 Rxc5 20. Ra8+ Ke7 21. Rxh8 $18) 19. Rxc5 {[%emt 0:00:10][%mdl 64] [#] Remove Defender} Nxc5 {[%emt 0:00:02]} 20. Bxc8 {[%emt 0:00:07] Strongly threatening Rc1.} O-O $1 {[%emt 0:00:03]} 21. Bxe6 {[%emt 0:00:08]} fxe6 $11 {[%emt 0:00:03][%mdl 4096] Endgame KRN-KRN} 22. Nd4 {[%emt 0:00:15] [#]} Ra8 $146 {[%emt 0:00:38]} ({Predecessor:} 22... Rb8) 23. g3 {[%emt 0:01:58]} Ra4 {[%emt 0:01:20]} 24. Rc1 {[%emt 0:03:23]} Rxd4 {[%emt 0:02:15]} 25. Rxc5 {[%emt 0:01:13]} g5 {[%emt 0:01:03]} 26. Rc6 {[%emt 0:03:50]} gxf4 {[%emt 0:00:11] [#] Threatens to win with ...Kf7.} 27. Rxe6 {[%emt 0:00:33] A balanced but interesting game.  Weighted Error Value: White=0.01 (flawless) /Black=0.00 (flawless)} 1/2-1/2

[Event "Chinese League Div-A Rapid 2022"]
[Site "Fuling,Chongqing"]
[Date "2022.09.10"]
[Round "4.1"]
[White "Zhang, Pengxiang"]
[Black "Xu, Yi"]
[Result "0-1"]
[ECO "D27"]
[WhiteElo "2564"]
[BlackElo "2507"]
[Annotator "TA"]
[PlyCount "86"]
[EventDate "2022.09.07"]
[EventType "team-tourn"]
[EventCountry "CHN"]
[SourceTitle "playchess.com"]
[Source "ChessBase"]
[SourceQuality "1"]
[TimeControl "1500+10"]

{[%evp 20,86,13,2,11,0,0,0,0,-17,-11,-4,-18,-15,-8,-14,0,0,0,-19,0,-16,-16,-42,-35,-28,-30,-27,-28,-25,-23,-109,-108,-116,-110,-204,-197,-217,-189,-329,-318,-534,-520,-501,-516,-497,-459,-893,-1066,-917,-799,-1137,-1028,-1170,-879,-1499,-1472,-1546,-1529,-1538,-1453,-1096,-1025,-2016,-1115,-29985,-29986,-29995,-29996]} 1. d4 {[%emt 0:00:02]} Nf6 {[%emt 0:00:01]} 2. c4 {[%emt 0:00:01]} e6 {[%emt 0:00:02]} 3. Nf3 {[%emt 0:00:01]} d5 {[%emt 0:00:02]} 4. Nc3 {[%emt 0:00:00]} c5 {[%emt 0:00:16]} 5. e3 {[%emt 0:01:26]} dxc4 {[%emt 0:00:11]} 6. Bxc4 {[%emt 0:00:06]} a6 {[%emt 0:00:04]} 7. a4 {[%emt 0:01:12]} Nc6 {[%emt 0:01:04]} 8. O-O {[%emt 0:00:06]} Be7 {[%emt 0:00:30]} 9. dxc5 {[%emt 0:03:04]} Qxd1 {[%emt 0:00:42]} 10. Rxd1 {[%emt 0:00:01]} Bxc5 {[%emt 0:00:08]} 11. Bd2 {[%emt 0:01:29]} b6 {[%emt 0:03:17] D27: Queen's Gambit Accepted: Classical main line: 7 e4!? and 7 a4.} 12. Ng5 {[%emt 0:05:32]} Ne5 {[%emt 0:04:32]} 13. Be2 {[%emt 0:00:01]} Bb7 {[%emt 0:00:09] [#] Against Nce4. The position is equal.} 14. Rab1 $146 {[%emt 0:01:58]} ({Predecessor:} 14. Na2 h6 15. Bc3 Ned7 16. Bf3 Bxf3 17. Nxf3 O-O 18. Rac1 Rfc8 19. Rc2 Be7 20. Bxf6 Nxf6 {½-½ (74) Lahaye,R (2376)-Okkes,M (2386) Hilversum 2008}) 14... h6 {[%emt 0:03:28]} 15. Nf3 {[%emt 0:00:39]} Nxf3+ {[%emt 0:00:07]} 16. Bxf3 {[%emt 0:00:43]} Bxf3 {[%emt 0:00:02]} 17. gxf3 {[%emt 0:00:01]} a5 {[%emt 0:01:29]} 18. Kf1 {[%emt 0:00:20]} Ke7 {[%emt 0:00:09]} 19. Ke2 {[%emt 0:00:11]} Rhd8 {[%emt 0:00:31]} 20. e4 {[%emt 0:00:38]} Rac8 {[%emt 0:02:27]} 21. Bf4 {[%emt 0:02:08]} Nh5 {[%emt 0:01:02]} 22. Be3 {[%emt 0:00:17]} Rxd1 {[%emt 0:00:47]} 23. Rxd1 {[%emt 0:00:10]} g5 {[%emt 0:00:04]} 24. e5 {[%emt 0:03:12]} f6 {[%emt 0:02:45]} 25. Ne4 {[%emt 0:02:46]} (25. exf6+ $11 {keeps the balance.} Nxf6 26. Kd3) 25... Bxe3 $17 {[%emt 0:00:19] Black continues to play with concentration.} 26. fxe3 {[%emt 0:00:38]} fxe5 {[%emt 0:00:14][%mdl 4096] Endgame KRN-KRN} 27. b3 {[%emt 0:01:10]} (27. Nd2 $17) 27... Nf6 $19 {[%emt 0:01:27]} 28. Nxf6 {[%emt 0:01:13]} Kxf6 {[%emt 0:00:02] KR-KR} 29. Rd6 {[%emt 0:00:03]} (29. Rd2 {might work better.}) 29... e4 {[%emt 0:00:51] [#] White must now prevent ...Rc2+.} 30. fxe4 $2 {[%emt 0:00:44]} (30. Rd2 {was forced.}) 30... Rc2+ {[%emt 0:00:16]} 31. Kf3 {[%emt 0:00:01]} Rxh2 {[%emt 0:00:08]} 32. Rxb6 {[%emt 0:00:00]} h5 {[%emt 0:00:42][%cal Bh6h5,Bh5h4,Bh4h3,Bh3h2][%mdl 32]} 33. Rb5 {[%emt 0:00:14]} (33. Kg3 $142 Rc2 34. b4) 33... g4+ {[%emt 0:00:55]} 34. Kg3 {[%emt 0:00:10]} Rh3+ {[%emt 0:00:01]} 35. Kf2 {[%emt 0:00:12]} h4 {[%emt 0:00:26]} 36. Rxa5 {[%emt 0:00:03]} Rf3+ {[%emt 0:00:43]} 37. Ke2 {[%emt 0:00:02]} h3 {[%emt 0:00:52]} 38. Rh5 {[%emt 0:00:00]} Kg6 {[%emt 0:00:08]} 39. Rh8 {[%emt 0:00:04]} Rg3 {[%emt 0:00:21] [#] Threatens to win with ...Rg2+.} 40. a5 {[%emt 0:00:10]} Rg2+ {[%emt 0:00:02]} 41. Kf1 {[%emt 0:00:29]} Ra2 {[%emt 0:00:04] ( -> ...h2)} 42. b4 {[%emt 0:00:30]} h2 {[%emt 0:00:18]} 43. a6 {[%emt 0:00:08]} g3 {[%emt 0:00:08] Weighted Error Value: White=0.95/Black=0.17 (very precise)} 0-1